[Event "Titled Tuesday Blitz December 20 Early 2022"]
[White "bennyficial"]
[Black "HashtagChess"]
[WhiteElo "2145"]
[BlackElo "1812"]
[Result "1-0"]
[Round "09"]
[TimeControl "180+2"]
[Date "2022.12.20"]
[WhiteClock "0:00:27"]
[BlackClock "0:00:12"]

1. Nf3 {[%clk 0:03:00]}  Nf6 {[%clk 0:01:18]} 2. c4 {[%clk 0:02:59]}  c6 {[%clk 0:01:18]} 3. d4 {[%clk 0:02:51]}  d5 {[%clk 0:01:19]} 4. cxd5 {[%clk 0:02:36]}  cxd5 {[%clk 0:01:20]} 5. Nc3 {[%clk 0:02:36]}  Nc6 {[%clk 0:01:19]} 6. h3 {[%clk 0:02:33]}  Bf5 {[%clk 0:01:19]} 7. Bf4 {[%clk 0:02:19]}  e6 {[%clk 0:01:19]} 8. e3 {[%clk 0:02:13]}  a6 {[%clk 0:01:19]} 9. Bd3 {[%clk 0:02:06]}  Bxd3 {[%clk 0:01:19]} 10. Qxd3 {[%clk 0:02:07]}  Bd6 {[%clk 0:01:15]} 11. Bxd6 {[%clk 0:02:03]}  Qxd6 {[%clk 0:01:16]} 12. O-O {[%clk 0:02:02]}  O-O {[%clk 0:01:16]} 13. Rac1 {[%clk 0:01:55]}  Rac8 {[%clk 0:01:14]} 14. Rfe1 {[%clk 0:01:47]}  h6 {[%clk 0:01:04]} 15. Nd2 {[%clk 0:01:41]}  b5 {[%clk 0:00:58]} 16. Rcd1 {[%clk 0:01:27]}  b4 {[%clk 0:00:53]} 17. Ne2 {[%clk 0:01:22]}  a5 {[%clk 0:00:52]} 18. Nf4 {[%clk 0:01:20]}  a4 {[%clk 0:00:45]} 19. Qb5 {[%clk 0:01:13]}  a3 {[%clk 0:00:34]} 20. bxa3 {[%clk 0:01:14]}  bxa3 {[%clk 0:00:33]} 21. Nd3 {[%clk 0:01:05]}  Rb8 {[%clk 0:00:28]} 22. Qc5 {[%clk 0:00:40]}  Qc7 {[%clk 0:00:18]} 23. Rc1 {[%clk 0:00:33]}  Rfc8 {[%clk 0:00:18]} 24. Ne5 {[%clk 0:00:28]}  Ne4 {[%clk 0:00:12]} 25. Nxe4 {[%clk 0:00:27]} 1-0


[Site "https://www.chess.com"]

[Event "Titled Tuesday Blitz December 20 Early 2022"]
[White "exoticprincess"]
[Black "Firouzja, Alireza"]
[BlackFideId "12573981"]
[WhiteElo "3057"]
[BlackElo "2785"]
[Result "0-1"]
[Round "09"]
[TimeControl "180+2"]
[Date "2022.12.20"]
[WhiteClock "0:00:02"]
[BlackClock "0:01:41"]

1. d4 {[%clk 0:03:00]}  Nf6 {[%clk 0:02:58]} 2. c4 {[%clk 0:02:59]}  g6 {[%clk 0:02:58]} 3. g3 {[%clk 0:02:57]}  Bg7 {[%clk 0:02:58]} 4. Bg2 {[%clk 0:02:57]}  O-O {[%clk 0:02:58]} 5. Nc3 {[%clk 0:02:57]}  d6 {[%clk 0:02:59]} 6. Nf3 {[%clk 0:02:57]}  Nbd7 {[%clk 0:02:59]} 7. O-O {[%clk 0:02:56]}  e5 {[%clk 0:03:00]} 8. e4 {[%clk 0:02:57]}  c6 {[%clk 0:02:55]} 9. h3 {[%clk 0:02:52]}  Qb6 {[%clk 0:02:54]} 10. c5 {[%clk 0:02:52]}  dxc5 {[%clk 0:02:55]} 11. dxe5 {[%clk 0:02:53]}  Ne8 {[%clk 0:02:55]} 12. e6 {[%clk 0:02:51]}  fxe6 {[%clk 0:02:55]} 13. Ng5 {[%clk 0:02:36]}  Ne5 {[%clk 0:02:55]} 14. f4 {[%clk 0:02:06]}  Nf7 {[%clk 0:02:55]} 15. Nxf7 {[%clk 0:02:03]}  Bd4+ {[%clk 0:02:56]} 16. Kh2 {[%clk 0:02:03]}  Rxf7 {[%clk 0:02:56]} 17. e5 {[%clk 0:01:59]}  Nc7 {[%clk 0:02:56]} 18. Ne4 {[%clk 0:01:54]}  Nd5 {[%clk 0:02:56]} 19. h4 {[%clk 0:01:42]}  Qd8 {[%clk 0:02:55]} 20. a4 {[%clk 0:01:23]}  b6 {[%clk 0:02:49]} 21. Ra3 {[%clk 0:01:23]}  Qe7 {[%clk 0:02:33]} 22. Bh3 {[%clk 0:01:17]}  Ba6 {[%clk 0:02:29]} 23. Re1 {[%clk 0:01:15]}  Rd8 {[%clk 0:02:28]} 24. Ng5 {[%clk 0:00:51]}  Rf5 {[%clk 0:02:27]} 25. Bxf5 {[%clk 0:00:46]}  exf5 {[%clk 0:02:24]} 26. e6 {[%clk 0:00:32]}  Nf6 {[%clk 0:02:21]} 27. Qf3 {[%clk 0:00:30]}  Bc4 {[%clk 0:02:15]} 28. Qxc6 {[%clk 0:00:15]}  Bd5 {[%clk 0:02:14]} 29. Qb5 {[%clk 0:00:15]}  Ng4+ {[%clk 0:02:02]} 30. Kh3 {[%clk 0:00:15]}  c4 {[%clk 0:01:50]} 31. Nf7 {[%clk 0:00:12]}  Qb7 {[%clk 0:01:48]} 32. Re2 {[%clk 0:00:05]}  Bxe6 {[%clk 0:01:42]} 33. Rg2 {[%clk 0:00:02]}  Bxf7 {[%clk 0:01:41]} 0-1


[Site "https://www.chess.com"]

[Event "Titled Tuesday Blitz December 20 Early 2022"]
[White "googlegoom"]
[Black "Begmuratov, Khumoyun"]
[BlackFideId "14210207"]
[WhiteElo "2581"]
[BlackElo "2387"]
[Result "0-1"]
[Round "09"]
[TimeControl "180+2"]
[Date "2022.12.20"]
[WhiteClock "0:01:19"]
[BlackClock "0:01:08"]

1. Nf3 {[%clk 0:02:59]}  Nf6 {[%clk 0:02:59]} 2. b3 {[%clk 0:02:59]}  g6 {[%clk 0:02:58]} 3. Bb2 {[%clk 0:03:00]}  Bg7 {[%clk 0:02:59]} 4. e3 {[%clk 0:02:59]}  O-O {[%clk 0:02:59]} 5. d4 {[%clk 0:03:00]}  d6 {[%clk 0:02:59]} 6. Be2 {[%clk 0:03:01]}  b6 {[%clk 0:02:58]} 7. O-O {[%clk 0:03:01]}  Bb7 {[%clk 0:02:59]} 8. c4 {[%clk 0:03:02]}  Nbd7 {[%clk 0:03:00]} 9. Nbd2 {[%clk 0:03:02]}  e6 {[%clk 0:03:00]} 10. Qc2 {[%clk 0:03:03]}  Qe7 {[%clk 0:03:01]} 11. Rfd1 {[%clk 0:03:03]}  a6 {[%clk 0:03:01]} 12. Rac1 {[%clk 0:03:03]}  e5 {[%clk 0:03:01]} 13. dxe5 {[%clk 0:03:03]}  dxe5 {[%clk 0:02:59]} 14. Qb1 {[%clk 0:03:03]}  e4 {[%clk 0:02:58]} 15. Ne1 {[%clk 0:03:02]}  Ne5 {[%clk 0:02:56]} 16. Qa1 {[%clk 0:03:00]}  Rfe8 {[%clk 0:02:56]} 17. Nb1 {[%clk 0:02:57]}  c5 {[%clk 0:02:36]} 18. Nc3 {[%clk 0:02:56]}  Qe6 {[%clk 0:02:27]} 19. Na4 {[%clk 0:02:49]}  Nh5 {[%clk 0:01:52]} 20. Rd2 {[%clk 0:02:33]}  Rad8 {[%clk 0:01:37]} 21. Rxd8 {[%clk 0:02:19]}  Rxd8 {[%clk 0:01:38]} 22. Nxb6 {[%clk 0:02:06]}  Nf3+ {[%clk 0:01:33]} 23. gxf3 {[%clk 0:01:48]}  exf3 {[%clk 0:01:25]} 24. Bf1 {[%clk 0:01:44]}  Bxb2 {[%clk 0:01:24]} 25. Qxb2 {[%clk 0:01:43]}  Qxb6 {[%clk 0:01:25]} 26. Qc2 {[%clk 0:01:35]}  Qd6 {[%clk 0:01:19]} 27. Nd3 {[%clk 0:01:28]}  Be4 {[%clk 0:01:11]} 28. Rd1 {[%clk 0:01:27]}  Nf6 {[%clk 0:01:10]} 29. Qc3 {[%clk 0:01:19]}  Ng4 {[%clk 0:01:08]} 0-1


[Site "https://www.chess.com"]

[Event "Titled Tuesday Blitz December 20 Early 2022"]
[White "jaldjald"]
[Black "Kucherov, Konstantin"]
[BlackFideId "34136280"]
[WhiteElo "2386"]
[BlackElo "1983"]
[Result "1-0"]
[Round "09"]
[TimeControl "180+2"]
[Date "2022.12.20"]
[WhiteClock "0:00:15"]
[BlackClock "0:00:19"]

1. e4 {[%clk 0:03:00]}  b6 {[%clk 0:02:59]} 2. d4 {[%clk 0:03:00]}  Bb7 {[%clk 0:03:00]} 3. Bd3 {[%clk 0:03:00]}  e6 {[%clk 0:03:00]} 4. Nc3 {[%clk 0:02:58]}  Bb4 {[%clk 0:02:58]} 5. Ne2 {[%clk 0:02:58]}  Nf6 {[%clk 0:02:59]} 6. O-O {[%clk 0:02:57]}  d5 {[%clk 0:02:58]} 7. e5 {[%clk 0:02:50]}  Nfd7 {[%clk 0:02:58]} 8. Nb1 {[%clk 0:02:45]}  Be7 {[%clk 0:02:57]} 9. Nd2 {[%clk 0:02:41]}  Ba6 {[%clk 0:02:56]} 10. c4 {[%clk 0:02:35]}  dxc4 {[%clk 0:02:45]} 11. Nxc4 {[%clk 0:02:34]}  O-O {[%clk 0:02:44]} 12. Qc2 {[%clk 0:02:23]}  g6 {[%clk 0:02:41]} 13. Bh6 {[%clk 0:02:19]}  Re8 {[%clk 0:02:39]} 14. Be4 {[%clk 0:02:17]}  c6 {[%clk 0:02:37]} 15. Rfd1 {[%clk 0:02:09]}  Bb7 {[%clk 0:02:33]} 16. Ne3 {[%clk 0:02:01]}  Na6 {[%clk 0:02:31]} 17. Rac1 {[%clk 0:01:55]}  Nb4 {[%clk 0:02:30]} 18. Qb3 {[%clk 0:01:50]}  Nd5 {[%clk 0:02:29]} 19. Nxd5 {[%clk 0:01:48]}  exd5 {[%clk 0:02:22]} 20. Bd3 {[%clk 0:01:48]}  c5 {[%clk 0:02:19]} 21. Bb5 {[%clk 0:01:45]}  c4 {[%clk 0:02:16]} 22. Qa4 {[%clk 0:01:43]}  Nf8 {[%clk 0:02:01]} 23. Bxe8 {[%clk 0:01:41]}  Qxe8 {[%clk 0:02:00]} 24. Qxe8 {[%clk 0:01:41]}  Rxe8 {[%clk 0:02:00]} 25. b3 {[%clk 0:01:39]}  b5 {[%clk 0:02:00]} 26. bxc4 {[%clk 0:01:36]}  bxc4 {[%clk 0:01:57]} 27. Rb1 {[%clk 0:01:36]}  Bc6 {[%clk 0:01:55]} 28. Bxf8 {[%clk 0:01:31]}  Bxf8 {[%clk 0:01:52]} 29. Nc3 {[%clk 0:01:31]}  a5 {[%clk 0:01:38]} 30. f4 {[%clk 0:01:23]}  Bb4 {[%clk 0:01:37]} 31. Rdc1 {[%clk 0:01:20]}  Kf8 {[%clk 0:01:36]} 32. Kf2 {[%clk 0:01:20]}  Ke7 {[%clk 0:01:37]} 33. Ke3 {[%clk 0:01:16]}  h5 {[%clk 0:01:32]} 34. g3 {[%clk 0:01:01]}  Ke6 {[%clk 0:01:32]} 35. Ne2 {[%clk 0:01:00]}  Kf5 {[%clk 0:01:23]} 36. h3 {[%clk 0:00:59]}  Rc8 {[%clk 0:01:14]} 37. Rg1 {[%clk 0:00:58]}  Ba4 {[%clk 0:01:10]} 38. g4+ {[%clk 0:00:56]}  hxg4 {[%clk 0:01:09]} 39. hxg4+ {[%clk 0:00:55]}  Ke6 {[%clk 0:01:10]} 40. Rgc1 {[%clk 0:00:54]}  Rh8 {[%clk 0:01:07]} 41. Rh1 {[%clk 0:00:51]}  Rc8 {[%clk 0:01:06]} 42. Rbc1 {[%clk 0:00:34]}  Ba3 {[%clk 0:01:02]} 43. Rb1 {[%clk 0:00:30]}  Bb4 {[%clk 0:00:50]} 44. a3 {[%clk 0:00:29]}  Be7 {[%clk 0:00:44]} 45. Rb6+ {[%clk 0:00:22]}  Kd7 {[%clk 0:00:40]} 46. Rb7+ {[%clk 0:00:20]}  Rc7 {[%clk 0:00:37]} 47. Rxc7+ {[%clk 0:00:20]}  Kxc7 {[%clk 0:00:37]} 48. Nc3 {[%clk 0:00:21]}  Bc6 {[%clk 0:00:36]} 49. a4 {[%clk 0:00:21]}  Bb4 {[%clk 0:00:35]} 50. Nb5+ {[%clk 0:00:18]}  Kb6 {[%clk 0:00:34]} 51. f5 {[%clk 0:00:18]}  gxf5 {[%clk 0:00:33]} 52. gxf5 {[%clk 0:00:19]}  Bxb5 {[%clk 0:00:27]} 53. axb5 {[%clk 0:00:18]}  Kxb5 {[%clk 0:00:28]} 54. e6 {[%clk 0:00:18]}  fxe6 {[%clk 0:00:27]} 55. fxe6 {[%clk 0:00:18]}  a4 {[%clk 0:00:28]} 56. Rb1 {[%clk 0:00:17]}  a3 {[%clk 0:00:24]} 57. e7 {[%clk 0:00:16]}  a2 {[%clk 0:00:23]} 58. e8=Q+ {[%clk 0:00:14]}  Ka5 {[%clk 0:00:21]} 59. Ra1 {[%clk 0:00:15]}  Bc3 {[%clk 0:00:19]} 60. Rxa2+ {[%clk 0:00:16]}  Kb4 {[%clk 0:00:19]} 61. Qa4# {[%clk 0:00:15]} 1-0


[Site "https://www.chess.com"]

[Event "Titled Tuesday Blitz December 20 Early 2022"]
[White "nikitakhoroshev"]
[Black "Machidon, Cristi"]
[BlackFideId "13904590"]
[WhiteElo "2709"]
[BlackElo "2279"]
[Result "1-0"]
[Round "09"]
[TimeControl "180+2"]
[Date "2022.12.20"]
[WhiteClock "0:01:24"]
[BlackClock "0:00:09"]

1. d4 {[%clk 0:03:00]}  Nf6 {[%clk 0:02:38]} 2. c4 {[%clk 0:02:58]}  d6 {[%clk 0:02:38]} 3. Nc3 {[%clk 0:02:58]}  Nbd7 {[%clk 0:02:37]} 4. e4 {[%clk 0:02:55]}  e5 {[%clk 0:02:37]} 5. f4 {[%clk 0:02:55]}  exd4 {[%clk 0:02:37]} 6. Qxd4 {[%clk 0:02:56]}  c6 {[%clk 0:02:37]} 7. Nf3 {[%clk 0:02:55]}  d5 {[%clk 0:02:34]} 8. cxd5 {[%clk 0:02:52]}  Bc5 {[%clk 0:02:34]} 9. Qc4 {[%clk 0:02:36]}  O-O {[%clk 0:02:25]} 10. dxc6 {[%clk 0:02:31]}  bxc6 {[%clk 0:02:25]} 11. e5 {[%clk 0:02:16]}  Ng4 {[%clk 0:02:24]} 12. Ne4 {[%clk 0:02:16]}  Ne3 {[%clk 0:01:57]} 13. Bxe3 {[%clk 0:02:15]}  Bxe3 {[%clk 0:01:58]} 14. g3 {[%clk 0:02:16]}  Qb6 {[%clk 0:01:57]} 15. Qb3 {[%clk 0:02:00]}  Bb7 {[%clk 0:01:07]} 16. Qxb6 {[%clk 0:01:57]}  axb6 {[%clk 0:01:07]} 17. Ke2 {[%clk 0:01:53]}  Bc5 {[%clk 0:00:58]} 18. Nxc5 {[%clk 0:01:53]}  Nxc5 {[%clk 0:00:59]} 19. Ke3 {[%clk 0:01:54]}  Ra4 {[%clk 0:00:50]} 20. Be2 {[%clk 0:01:51]}  Rfa8 {[%clk 0:00:48]} 21. a3 {[%clk 0:01:50]}  Ne6 {[%clk 0:00:39]} 22. Rhd1 {[%clk 0:01:46]}  c5 {[%clk 0:00:39]} 23. Rd7 {[%clk 0:01:44]}  Re4+ {[%clk 0:00:31]} 24. Kf2 {[%clk 0:01:43]}  Bc6 {[%clk 0:00:31]} 25. Rd6 {[%clk 0:01:41]}  Rc8 {[%clk 0:00:17]} 26. Ba6 {[%clk 0:01:41]}  Rc7 {[%clk 0:00:13]} 27. Rxc6 {[%clk 0:01:39]}  Rxc6 {[%clk 0:00:13]} 28. Bb7 {[%clk 0:01:39]}  Nd8 {[%clk 0:00:12]} 29. Bxc6 {[%clk 0:01:34]}  Nxc6 {[%clk 0:00:13]} 30. Rd1 {[%clk 0:01:32]}  Kf8 {[%clk 0:00:13]} 31. Rd6 {[%clk 0:01:32]}  Na5 {[%clk 0:00:13]} 32. Rxb6 {[%clk 0:01:32]}  Nc4 {[%clk 0:00:11]} 33. Rb5 {[%clk 0:01:31]}  Ke7 {[%clk 0:00:10]} 34. a4 {[%clk 0:01:27]}  h6 {[%clk 0:00:09]} 35. a5 {[%clk 0:01:25]}  g5 {[%clk 0:00:09]} 36. a6 {[%clk 0:01:24]} 1-0


[Site "https://www.chess.com"]

[Event "Titled Tuesday Blitz December 20 Early 2022"]
[White "politeplayer"]
[Black "Shuvalov, Evgenij"]
[BlackFideId "4187237"]
[WhiteElo "2244"]
[BlackElo "2038"]
[Result "0-1"]
[Round "09"]
[TimeControl "180+2"]
[Date "2022.12.20"]
[WhiteClock "0:00:25"]
[BlackClock "0:01:25"]

1. e4 {[%clk 0:02:58]}  e6 {[%clk 0:02:59]} 2. c4 {[%clk 0:02:56]}  d5 {[%clk 0:02:59]} 3. cxd5 {[%clk 0:02:56]}  exd5 {[%clk 0:02:59]} 4. Qb3 {[%clk 0:02:56]}  dxe4 {[%clk 0:02:57]} 5. Nc3 {[%clk 0:02:55]}  Nf6 {[%clk 0:02:56]} 6. Bc4 {[%clk 0:02:54]}  Qe7 {[%clk 0:02:54]} 7. d3 {[%clk 0:02:52]}  Nc6 {[%clk 0:02:51]} 8. Be3 {[%clk 0:02:45]}  Ne5 {[%clk 0:02:49]} 9. O-O-O {[%clk 0:02:27]}  Nxd3+ {[%clk 0:02:40]} 10. Rxd3 {[%clk 0:02:20]}  exd3 {[%clk 0:02:41]} 11. Nf3 {[%clk 0:02:20]}  c6 {[%clk 0:02:03]} 12. Re1 {[%clk 0:02:17]}  Be6 {[%clk 0:02:02]} 13. Bxe6 {[%clk 0:01:56]}  fxe6 {[%clk 0:02:02]} 14. Ng5 {[%clk 0:01:48]}  Nd5 {[%clk 0:01:50]} 15. Nxe6 {[%clk 0:01:29]}  Qxe6 {[%clk 0:01:43]} 16. Bd2 {[%clk 0:01:26]}  Qxe1+ {[%clk 0:01:42]} 17. Bxe1 {[%clk 0:01:26]}  O-O-O {[%clk 0:01:43]} 18. Bd2 {[%clk 0:01:18]}  Nxc3 {[%clk 0:01:41]} 19. Bxc3 {[%clk 0:01:13]}  Bd6 {[%clk 0:01:39]} 20. Bxg7 {[%clk 0:01:05]}  Rhe8 {[%clk 0:01:30]} 21. Bc3 {[%clk 0:01:01]}  Bf4+ {[%clk 0:01:29]} 22. Kd1 {[%clk 0:01:01]}  d2 {[%clk 0:01:27]} 23. Qc2 {[%clk 0:00:25]}  Re1# {[%clk 0:01:25]} 0-1


[Site "https://www.chess.com"]

[Event "Titled Tuesday Blitz December 20 Early 2022"]
[White "romulocardoso"]
[Black "MartinMatthiesen"]
[WhiteElo "2390"]
[BlackElo "2497"]
[Result "0-1"]
[Round "09"]
[TimeControl "180+2"]
[Date "2022.12.20"]
[WhiteClock "0:02:22"]
[BlackClock "0:01:59"]

1. e4 {[%clk 0:02:32]}  e5 {[%clk 0:02:55]} 2. Nf3 {[%clk 0:02:32]}  Nc6 {[%clk 0:02:46]} 3. d4 {[%clk 0:02:30]}  exd4 {[%clk 0:02:45]} 4. Bc4 {[%clk 0:02:25]}  Nf6 {[%clk 0:02:44]} 5. e5 {[%clk 0:02:25]}  d5 {[%clk 0:02:41]} 6. Bb5 {[%clk 0:02:26]}  Ne4 {[%clk 0:02:39]} 7. Nxd4 {[%clk 0:02:26]}  Bc5 {[%clk 0:02:38]} 8. O-O {[%clk 0:02:25]}  O-O {[%clk 0:02:36]} 9. Nxc6 {[%clk 0:02:24]}  bxc6 {[%clk 0:02:36]} 10. Bxc6 {[%clk 0:02:25]}  Ba6 {[%clk 0:02:21]} 11. Qxd5 {[%clk 0:02:25]}  Bxf1 {[%clk 0:02:12]} 12. Qxe4 {[%clk 0:02:23]}  Ba6 {[%clk 0:02:00]} 13. Bxa8 {[%clk 0:02:22]}  Qd1+ {[%clk 0:01:59]} 0-1


[Site "https://www.chess.com"]

[Event "Titled Tuesday Blitz December 20 Early 2022"]
[White "santosalberto1987"]
[Black "WhiteKnight2612"]
[WhiteElo "2495"]
[BlackElo "2753"]
[Result "0-1"]
[Round "09"]
[TimeControl "180+2"]
[Date "2022.12.20"]
[WhiteClock "0:00:03"]
[BlackClock "0:01:51"]

1. d4 {[%clk 0:03:00]}  Nf6 {[%clk 0:02:58]} 2. Nf3 {[%clk 0:02:57]}  d5 {[%clk 0:02:58]} 3. c4 {[%clk 0:02:56]}  Bf5 {[%clk 0:02:58]} 4. Nc3 {[%clk 0:02:54]}  e6 {[%clk 0:02:58]} 5. cxd5 {[%clk 0:02:49]}  exd5 {[%clk 0:02:58]} 6. Qb3 {[%clk 0:02:49]}  b6 {[%clk 0:02:57]} 7. Bf4 {[%clk 0:02:47]}  c6 {[%clk 0:02:57]} 8. e3 {[%clk 0:02:46]}  Nbd7 {[%clk 0:02:57]} 9. h3 {[%clk 0:02:39]}  a5 {[%clk 0:02:54]} 10. a4 {[%clk 0:02:33]}  Bb4 {[%clk 0:02:53]} 11. Be2 {[%clk 0:02:31]}  Qe7 {[%clk 0:02:54]} 12. O-O {[%clk 0:02:30]}  O-O {[%clk 0:02:54]} 13. Rac1 {[%clk 0:02:27]}  Rfc8 {[%clk 0:02:51]} 14. Ne5 {[%clk 0:02:25]}  Nxe5 {[%clk 0:02:50]} 15. Bxe5 {[%clk 0:02:26]}  Nd7 {[%clk 0:02:49]} 16. Bg3 {[%clk 0:02:24]}  Be6 {[%clk 0:02:47]} 17. Bd3 {[%clk 0:02:13]}  Nf6 {[%clk 0:02:39]} 18. Bh4 {[%clk 0:02:05]}  c5 {[%clk 0:02:31]} 19. Bxf6 {[%clk 0:01:39]}  Qxf6 {[%clk 0:02:24]} 20. Nxd5 {[%clk 0:01:40]}  Qg5 {[%clk 0:02:15]} 21. Bc4 {[%clk 0:01:33]}  cxd4 {[%clk 0:02:16]} 22. Nxb6 {[%clk 0:01:32]}  Rxc4 {[%clk 0:02:16]} 23. Nxc4 {[%clk 0:01:28]}  Bxh3 {[%clk 0:02:17]} 24. g3 {[%clk 0:01:26]}  Qd5 {[%clk 0:02:16]} 25. f3 {[%clk 0:01:20]}  Bxf1 {[%clk 0:02:15]} 26. Rxf1 {[%clk 0:01:14]}  Rc8 {[%clk 0:02:15]} 27. Nd2 {[%clk 0:00:56]}  Qxb3 {[%clk 0:02:06]} 28. Nxb3 {[%clk 0:00:56]}  dxe3 {[%clk 0:02:07]} 29. Rc1 {[%clk 0:00:39]}  Re8 {[%clk 0:02:00]} 30. Nd4 {[%clk 0:00:33]}  e2 {[%clk 0:01:59]} 31. Nc2 {[%clk 0:00:03]}  Rc8 {[%clk 0:01:51]} 0-1


[Site "https://www.chess.com"]

[Event "Titled Tuesday Blitz December 20 Early 2022"]
[White "stepanosinovsky"]
[Black "LileKoridze"]
[WhiteElo "2443"]
[BlackElo "2345"]
[Result "0-1"]
[Round "09"]
[TimeControl "180+2"]
[Date "2022.12.20"]
[WhiteClock "0:00:01"]
[BlackClock "0:00:42"]

1. e4 {[%clk 0:03:00]}  c5 {[%clk 0:02:59]} 2. d3 {[%clk 0:03:00]}  d6 {[%clk 0:02:58]} 3. Nd2 {[%clk 0:03:01]}  g6 {[%clk 0:02:53]} 4. Ngf3 {[%clk 0:03:01]}  Bg7 {[%clk 0:02:53]} 5. g3 {[%clk 0:03:01]}  Nf6 {[%clk 0:02:53]} 6. Bg2 {[%clk 0:03:01]}  O-O {[%clk 0:02:54]} 7. O-O {[%clk 0:03:02]}  Nc6 {[%clk 0:02:54]} 8. Re1 {[%clk 0:03:02]}  Rb8 {[%clk 0:02:54]} 9. a4 {[%clk 0:03:01]}  a6 {[%clk 0:02:54]} 10. e5 {[%clk 0:03:01]}  dxe5 {[%clk 0:02:53]} 11. Nxe5 {[%clk 0:03:02]}  Nxe5 {[%clk 0:02:50]} 12. Rxe5 {[%clk 0:03:03]}  b6 {[%clk 0:02:51]} 13. Nc4 {[%clk 0:02:59]}  e6 {[%clk 0:02:49]} 14. Bf4 {[%clk 0:02:57]}  Bb7 {[%clk 0:02:45]} 15. Re1 {[%clk 0:02:37]}  Bxg2 {[%clk 0:02:38]} 16. Bxb8 {[%clk 0:02:36]}  Ba8 {[%clk 0:02:36]} 17. Ba7 {[%clk 0:02:12]}  Qd5 {[%clk 0:02:26]} 18. f3 {[%clk 0:02:10]}  Nd7 {[%clk 0:02:18]} 19. Bxb6 {[%clk 0:01:57]}  Qh5 {[%clk 0:01:34]} 20. Kg2 {[%clk 0:01:38]}  g5 {[%clk 0:01:21]} 21. h3 {[%clk 0:01:36]}  f5 {[%clk 0:01:19]} 22. Rf1 {[%clk 0:00:13]}  g4 {[%clk 0:01:19]} 23. h4 {[%clk 0:00:13]}  f4 {[%clk 0:01:02]} 24. Bc7 {[%clk 0:00:11]}  fxg3 {[%clk 0:00:59]} 25. Kxg3 {[%clk 0:00:04]}  gxf3 {[%clk 0:00:54]} 26. Qd2 {[%clk 0:00:02]}  Nf6 {[%clk 0:00:52]} 27. Qg5 {[%clk 0:00:02]}  Qf7 {[%clk 0:00:47]} 28. Kf2 {[%clk 0:00:01]}  Qxc7 {[%clk 0:00:46]} 29. Rg1 {[%clk 0:00:01]}  Qh2+ {[%clk 0:00:42]} 0-1


[Site "https://www.chess.com"]

[Event "Titled Tuesday Blitz December 20 Early 2022"]
[White "viditchess"]
[Black "ProfessorChess101"]
[WhiteElo "2986"]
[BlackElo "2662"]
[Result "1/2-1/2"]
[Round "09"]
[TimeControl "180+2"]
[Date "2022.12.20"]
[WhiteClock "0:00:12"]
[BlackClock "0:00:02"]

1. e4 {[%clk 0:03:00]}  e5 {[%clk 0:02:59]} 2. Nf3 {[%clk 0:03:01]}  Nc6 {[%clk 0:02:59]} 3. Bb5 {[%clk 0:03:01]}  a6 {[%clk 0:02:58]} 4. Ba4 {[%clk 0:03:01]}  Nf6 {[%clk 0:02:57]} 5. O-O {[%clk 0:03:01]}  Be7 {[%clk 0:02:57]} 6. Re1 {[%clk 0:03:00]}  b5 {[%clk 0:02:56]} 7. Bb3 {[%clk 0:03:01]}  O-O {[%clk 0:02:56]} 8. a4 {[%clk 0:02:51]}  Bb7 {[%clk 0:02:52]} 9. d3 {[%clk 0:02:51]}  d6 {[%clk 0:02:49]} 10. Bd2 {[%clk 0:02:51]}  Nb8 {[%clk 0:02:26]} 11. Nc3 {[%clk 0:02:49]}  c6 {[%clk 0:02:21]} 12. Ne2 {[%clk 0:02:44]}  Nbd7 {[%clk 0:02:08]} 13. axb5 {[%clk 0:02:44]}  axb5 {[%clk 0:02:07]} 14. Ng3 {[%clk 0:02:44]}  Rxa1 {[%clk 0:01:58]} 15. Qxa1 {[%clk 0:02:45]}  Nc5 {[%clk 0:01:51]} 16. Ba2 {[%clk 0:02:45]}  Bc8 {[%clk 0:01:41]} 17. d4 {[%clk 0:02:40]}  exd4 {[%clk 0:01:39]} 18. Nxd4 {[%clk 0:02:41]}  Ng4 {[%clk 0:01:27]} 19. Nxc6 {[%clk 0:02:39]}  Qe8 {[%clk 0:01:24]} 20. Nxe7+ {[%clk 0:02:39]}  Qxe7 {[%clk 0:01:25]} 21. h3 {[%clk 0:02:38]}  Ne5 {[%clk 0:01:23]} 22. Bd5 {[%clk 0:02:33]}  Bxh3 {[%clk 0:01:08]} 23. b4 {[%clk 0:02:33]}  Na4 {[%clk 0:00:57]} 24. f4 {[%clk 0:01:54]}  Qh4 {[%clk 0:00:35]} 25. Qa3 {[%clk 0:01:51]}  Ng4 {[%clk 0:00:29]} 26. gxh3 {[%clk 0:01:47]}  Qxh3 {[%clk 0:00:30]} 27. Re2 {[%clk 0:01:47]}  h5 {[%clk 0:00:17]} 28. Bc1 {[%clk 0:01:28]}  h4 {[%clk 0:00:09]} 29. Nf5 {[%clk 0:01:25]}  Nc3 {[%clk 0:00:09]} 30. Rg2 {[%clk 0:01:08]}  Qf3 {[%clk 0:00:10]} 31. Rxg4 {[%clk 0:00:58]}  Qxg4+ {[%clk 0:00:09]} 32. Kh2 {[%clk 0:00:54]}  Qe2+ {[%clk 0:00:07]} 33. Kh3 {[%clk 0:00:54]}  Qf1+ {[%clk 0:00:04]} 34. Kxh4 {[%clk 0:00:53]}  Qh1+ {[%clk 0:00:03]} 35. Kg4 {[%clk 0:00:52]}  Ne2 {[%clk 0:00:02]} 36. Bb2 {[%clk 0:00:41]}  Qg2+ {[%clk 0:00:02]} 37. Ng3 {[%clk 0:00:41]}  Ng1 {[%clk 0:00:02]} 38. Qc3 {[%clk 0:00:10]}  Qh3+ {[%clk 0:00:02]} 39. Kg5 {[%clk 0:00:11]}  Qh6+ {[%clk 0:00:02]} 40. Kg4 {[%clk 0:00:11]}  Qh3+ {[%clk 0:00:01]} 41. Kg5 {[%clk 0:00:12]}  Qh6+ {[%clk 0:00:02]} 42. Kg4 {[%clk 0:00:12]}  Qh3+ {[%clk 0:00:02]} 1/2-1/2


[Site "https://www.chess.com"]